bitfinex-derivatives/quotes_ETHF0:USTF0_20240826
["timestamp","ask_amount","ask_price","bid_price","bid_amount"]
[1724677097820,0.36661,2727.0,2726.9,1.05574846]
[1724677099921,0.36661,2727.0,2726.9,0.68912846]
[1724677100109,1.28313,2727.0,2726.9,0.30452846]
[1724677100311,6.24135,2727.0,2726.9,0.30452846]
[1724677101221,5.32483,2727.0,2726.9,0.30452846]
[1724677101516,4.95033,2727.0,2726.9,0.30452846]
[1724677101713,1.28313,2727.0,2726.9,0.30452846]
[1724677101920,4.95033,2727.0,2726.9,0.30452846]
[1724677102427,1.28313,2727.0,2726.9,0.30452846]
[1724677102718,0.36661,2727.0,2726.9,0.30452846]
[1724677102918,0.36661,2727.0,2726.9,0.67114846]
[1724677103112,3.5744,2727.1,2727.0,0.36661]
[1724677103625,3.5744,2727.1,2727.0,0.74721]
[1724677105619,3.2078,2727.1,2727.0,0.74721]
[1724677105817,3.2078,2727.1,2727.0,5.71483]
[1724677106017,3.2078,2727.1,2726.9,0.30452846]
[1724677106220,0.36661,2727.0,2726.9,0.30452846]
[1724677106415,1.28313,2727.0,2726.9,0.30452846]
[1724677106620,5.86685,2727.0,2726.9,0.30452846]
[1724677107216,2.19981,2726.8,2726.7,0.0055061]
[1724677107617,5.86701,2726.8,2726.7,0.0055061]
[1724677107815,6.61771,2726.8,2726.7,0.0055061]
[1724677108225,6.62236746,2726.8,2726.7,0.00846629]
[1724677111817,4.95507746,2726.8,2726.7,0.00846629]
[1724677112120,4.95507746,2726.8,2726.7,0.37511629]
[1724677112321,0.00465746,2726.8,2726.7,0.37511629]
[1724677112519,0.00465746,2726.8,2726.7,5.33473629]
[1724677112821,0.00465746,2726.8,2726.7,5.71933629]
[1724677114323,0.00465746,2726.8,2726.7,10.71933629]
[1724677114522,0.3720961,2727.2,2727.1,0.36659]
[1724677114523,0.0055061,2727.2,2727.1,0.36659]
[1724677114724,0.0055061,2727.2,2727.1,4.03379]
[1724677115433,0.0055061,2727.2,2727.1,4.38709]
[1724677115620,0.01016834,2727.2,2727.1,4.38709]
[1724677118226,0.01016834,2727.2,2727.1,5.34489763]
[1724677118430,4.187,2727.8,2727.1,13.20725096]
[1724677118726,0.36653,2727.6,2727.2,3.15736577]
[1724677118933,0.36654,2727.5,2727.3,0.36656]
[1724677119132,0.91629,2727.7,2727.3,0.36656]
[1724677119328,0.92036337,2727.7,2727.3,0.36656]
[1724677119523,0.36657,2727.3,2727.2,0.3647]
[1724677119725,0.36657,2727.3,2727.1,1.67908074]
[1724677120535,0.3704,2727.5,2727.1,1.31250074]
[1724677120728,0.36654,2727.5,2727.2,4.1869758]
[1724677120927,0.36654,2727.5,2727.2,5.14617654]
[1724677121128,0.36654,2727.5,2727.3,0.71985]
[1724677121329,0.36654,2727.5,2727.3,0.3533]
[1724677121536,0.36654,2727.5,2727.3,0.71985]
[1724677121825,0.37427337,2727.7,2727.5,0.36654]
[1724677122135,0.36654,2727.5,2727.4,0.36654]
[1724677122336,0.37427337,2727.7,2727.4,0.36654]
[1724677122631,0.74079337,2727.7,2727.3,0.3533]
[1724677122835,0.74078337,2727.7,2727.5,0.36653]
[1724677123021,0.74078337,2727.7,2727.6,0.72912]
[1724677123022,0.37427337,2727.7,2727.6,0.72912]
[1724677123228,0.74078337,2727.7,2727.6,0.72912]
[1724677126238,0.74078337,2727.7,2727.6,0.3626]
[1724677127444,0.74078337,2727.7,2727.5,0.36653]
[1724677127445,0.36652,2727.6,2727.5,0.36653]
[1724677130036,0.74079337,2727.7,2727.6,0.36652]
[1724677130540,0.37059337,2727.7,2727.6,0.36652]
[1724677132247,0.00407337,2727.7,2727.6,0.36652]
[1724677132437,0.37058337,2727.7,2727.6,0.36652]
[1724677133249,0.00407337,2727.7,2727.6,0.36652]
[1724677133437,0.00407337,2727.7,2727.6,4.03292]
[1724677133834,0.00407337,2727.7,2727.6,8.15704]
[1724677134251,0.00407337,2727.7,2727.6,7.24072]
[1724677134443,0.37058337,2727.7,2727.6,3.57432]
[1724677134749,0.37058337,2727.7,2727.6,0.36652]
[1724677136151,0.00407337,2727.7,2727.6,4.94924]
[1724677137443,0.00407337,2727.7,2727.6,4.03292]
[1724677137950,0.00407337,2727.7,2727.6,5.86556]
[1724677138659,0.00407337,2727.7,2727.6,4.94924]
[1724677141554,0.00407337,2727.7,2727.6,4.03292]
[1724677141749,0.00407337,2727.7,2727.6,0.36652]
[1724677142550,0.00407337,2727.7,2727.5,0.3886]
[1724677142748,0.36655,2727.4,2727.3,3.2078]
[1724677143149,0.36655,2727.4,2727.3,3.57436]
[1724677145956,0.36655,2727.4,2727.3,0.36656]
[1724677146854,0.36659,2727.1,2727.0,1.32040074]
[1724677147054,0.36659,2727.1,2727.0,0.3666]
[1724677147555,0.72469,2727.1,2727.0,0.3666]
[1724677148154,0.3581,2727.1,2727.0,0.3666]
[1724677148562,0.36658,2727.3,2727.2,0.36658]
[1724677148754,0.72778,2727.3,2727.2,0.36658]
[1724677148948,0.36659,2727.2,2727.1,0.36659]
[1724677149363,0.3612,2727.3,2726.9,1.69600074]
[1724677149364,0.3666,2727.1,2727.0,0.36659]
[1724677150865,0.36659,2727.2,2727.1,0.36658]
[1724677152757,1.09757,2727.3,2727.2,0.36658]
[1724677154664,0.36658,2727.2,2727.1,0.36658]
[1724677154862,0.731,2727.3,2726.9,1.69600074]
[1724677155069,1.30089,2727.1,2726.7,0.96747764]
[1724677155363,0.36663,2726.8,2726.7,0.00846629]
[1724677155970,1.28322,2726.8,2726.7,0.00846629]
[1724677156161,1.64982,2726.8,2726.7,0.00846629]
[1724677157554,0.73323,2726.8,2726.7,0.00846629]
[1724677157760,0.375,2726.9,2726.8,0.36663]
[1724677160868,0.74162,2726.9,2726.7,0.37509629]
[1724677161066,0.74163,2726.9,2726.7,0.37509629]
[1724677161267,0.36663,2726.8,2726.7,0.37509629]
[1724677162269,0.36663,2726.8,2726.7,0.37899629]
[1724677163169,0.74162,2726.9,2726.8,0.36663]
[1724677164164,0.36663,2726.8,2726.7,0.37900629]
[1724677164774,0.36663,2726.8,2726.7,0.01236629]
[1724677165163,1.65542,2726.8,2726.7,0.01236629]
[1724677169967,0.73883,2726.8,2726.7,0.01236629]
[1724677170572,0.73883,2726.8,2726.7,0.37901629]
[1724677170976,5.32262,2726.8,2726.7,0.01236629]
[1724677172475,5.32262,2726.8,2726.7,0.37901629]
[1724677172682,4.40603,2726.8,2726.7,0.37901629]
[1724677173383,4.40603,2726.8,2726.7,0.01236629]
[1724677173578,4.40603,2726.8,2726.7,0.37901629]
[1724677174888,0.73883,2726.8,2726.7,0.37901629]
[1724677175599,0.36663,2726.8,2726.7,0.37901629]
[1724677176391,0.74162,2726.9,2726.8,0.36663]
[1724677177404,3.2078,2727.0,2726.9,0.36662]
[1724677177906,3.5744,2727.0,2726.9,0.73902]
[1724677178194,3.2078,2727.0,2726.9,1.65557]
[1724677178399,0.74428,2727.3,2727.2,0.36658]
[1724677178794,0.36659,2727.2,2727.1,0.36658]
[1724677180796,0.3777,2727.3,2727.0,0.7501]
[1724677180797,0.36659,2727.1,2727.0,0.7501]
[1724677180994,0.36659,2727.1,2727.0,0.3835]
[1724677181201,0.3666,2727.0,2726.9,0.36661]
[1724677181497,0.7216,2727.0,2726.9,0.36661]
[1724677182397,0.355,2727.0,2726.9,0.36661]
[1724677182698,0.3666,2727.1,2727.0,0.3666]
[1724677183803,0.36661,2727.0,2726.9,0.36661]
[1724677184898,0.3666,2727.1,2727.0,0.3666]
[1724677186703,0.36661,2727.0,2726.9,0.36661]
[1724677188010,0.36663,2726.9,2726.8,0.36662]
[1724677188511,0.36663,2726.9,2726.8,1.32563135]
[1724677188699,0.91649,2727.1,2726.8,0.95901135]
[1724677188897,1.29789,2727.1,2726.8,0.95901135]
[1724677189199,0.36662,2726.9,2726.8,0.95901135]
[1724677189605,0.36662,2726.9,2726.8,1.32564135]
[1724677189908,0.36661,2727.0,2726.9,0.36661]
[1724677190394,4.12427,2727.2,2726.8,0.95901135]
[1724677190595,0.36661,2727.0,2726.9,1.32562135]
[1724677191308,0.36661,2727.0,2726.9,0.95901135]
[1724677191609,0.36662,2726.9,2726.8,1.32563135]
[1724677191807,0.36662,2726.9,2726.8,3.15948298]
[1724677192307,1.28317,2726.9,2726.8,0.95901135]
[1724677193307,0.3765,2727.1,2726.8,0.95901135]
[1724677193308,0.36661,2727.0,2726.9,0.36661]
[1724677193499,0.36661,2727.0,2726.9,1.32562135]
[1724677196102,1.28313,2727.0,2726.8,0.95901135]
[1724677196406,0.36663,2726.8,2726.7,2.55202332]
[1724677196608,0.36663,2726.8,2726.7,4.38590308]
[1724677197310,0.75513,2726.9,2726.8,0.36663]
[1724677197608,0.36662,2727.0,2726.9,0.36661]
[1724677197810,0.36662,2727.0,2726.9,1.32790342]
[1724677198206,0.36659,2727.2,2727.1,0.36659]
[1724677198506,1.28304,2727.2,2727.1,3.6672]
[1724677198708,0.36659,2727.1,2727.0,1.32789342]
[1724677199012,0.36659,2727.1,2727.0,0.3666]
[1724677199508,1.28312,2727.0,2726.9,0.96129342]
[1724677200310,4.95032,2727.0,2726.9,0.96129342]
[1724677200505,0.36662,2726.9,2726.8,0.96129342]
[1724677200705,2.00277,2726.9,2726.8,2.7952792]
[1724677201004,1.28322,2726.8,2726.7,1.35325971]
[1724677201208,1.28322,2726.8,2726.7,2.22602562]
[1724677201398,1.28322,2726.8,2726.7,2.80428626]
[1724677201601,1.28322,2726.8,2726.7,0.00846629]
[1724677201800,4.95042,2726.8,2726.7,0.00846629]
[1724677202310,9.07481,2726.8,2726.7,0.00846629]
[1724677202607,14.07481,2726.8,2726.7,0.00846629]
[1724677203714,0.36671,2726.2,2726.1,0.96176064]
[1724677203909,0.36673,2726.1,2726.0,0.96176064]
[1724677204115,0.36673,2726.1,2725.7,1.31726064]
[1724677204116,1.096,2726.1,2725.7,1.31726064]
[1724677204306,1.096,2726.1,2725.6,1.9372068]
[1724677204307,0.91686,2726.0,2725.6,1.06976064]
[1724677204510,1.096,2726.1,2725.6,1.06976064]
[1724677204713,0.36675,2726.0,2725.8,0.36676]
[1724677205903,0.7412,2726.1,2725.7,0.3874]
[1724677206101,0.108,2726.2,2726.1,0.36673]
[1724677207613,0.108,2726.2,2725.9,0.3862]
[1724677207919,0.36674,2726.0,2725.9,0.75294]
[1724677208103,0.36674,2726.0,2725.9,0.3862]
[1724677208413,0.7411,2726.1,2725.7,0.96176064]
[1724677208607,0.36677,2725.8,2725.7,0.96176064]
[1724677209310,0.7411,2726.1,2725.6,1.46041593]
[1724677209514,0.36678,2725.7,2725.6,0.49865529]
[1724677209711,0.37095434,2725.7,2725.6,0.49865529]
[1724677210016,0.74595434,2725.7,2725.6,0.49865529]
[1724677211105,0.00417434,2725.7,2725.6,0.86544529]
[1724677211303,0.00417434,2725.7,2725.6,4.53424529]
[1724677211507,9.821e-05,2725.7,2725.6,8.24740751]
[1724677211715,9.821e-05,2725.7,2725.6,13.72745367]
[1724677211915,9.821e-05,2725.7,2725.6,13.61945367]
[1724677212419,9.821e-05,2725.7,2725.6,13.97565367]
[1724677212618,9.821e-05,2725.7,2725.6,17.87000649]
[1724677214219,9.821e-05,2725.7,2725.6,18.78699649]
[1724677214413,0.375,2726.4,2725.8,0.9169]
[1724677214713,0.7417,2726.4,2726.2,0.36671]
[1724677214915,0.7417,2726.4,2726.3,0.737]
[1724677215216,0.7417,2726.4,2726.0,0.36673]
[1724677215217,0.36672,2726.2,2726.0,0.36673]
[1724677215415,0.36673,2726.1,2726.0,0.7595]
[1724677215807,0.36673,2726.1,2726.0,1.12624]
[1724677216015,0.37014055,2726.2,2726.0,1.12624]
[1724677216611,0.36673,2726.1,2726.0,1.12624]
[1724677217319,0.00342055,2726.2,2726.1,0.36673]
[1724677217511,0.37013055,2726.2,2726.1,0.36673]
[1724677217714,0.00342055,2726.2,2726.1,0.36673]
[1724677218216,0.00342055,2726.2,2726.1,4.03473]
[1724677219316,0.00342055,2726.2,2726.1,0.36673]
[1724677219514,0.38242055,2726.2,2726.1,0.36673]
[1724677220822,0.74913055,2726.2,2726.1,0.36673]
[1724677221122,0.74913055,2726.2,2726.0,0.7595]
[1724677221123,0.36673,2726.1,2726.0,0.7595]
[1724677221920,0.36674,2726.0,2725.8,1.14095]
[1724677222120,0.36675,2725.9,2725.8,1.14095]
[1724677222426,0.74343,2726.1,2726.0,0.36674]
[1724677222814,0.36673,2726.1,2726.0,0.36674]
[1724677223610,0.38242055,2726.2,2725.8,0.7742]
[1724677223834,0.36673,2726.1,2726.0,0.36673]
[1724677224620,0.74914055,2726.2,2726.1,0.36673]
[1724677225120,0.36673,2726.1,2726.0,0.36673]
[1724677225327,0.36675,2726.0,2725.9,0.36675]
[1724677225518,1.29922055,2726.2,2725.8,0.7742]
[1724677225719,0.36674,2726.0,2725.9,0.36675]
[1724677226328,0.36677,2725.8,2725.7,3.57457]
[1724677226526,0.36678,2725.7,2725.6,0.37124529]
[1724677226727,0.7477,2725.7,2725.6,0.37124529]
[1724677227433,0.3728,2725.7,2725.6,0.37124529]
[1724677228415,0.3728,2725.7,2725.6,0.00445529]
[1724677228416,0.73958,2725.7,2725.6,0.00445529]
[1724677230331,0.3758,2725.9,2725.7,0.36678]
[1724677230538,0.74256,2725.9,2725.8,0.3673]
[1724677230833,4.41136,2725.9,2725.8,0.3673]
[1724677232235,0.36677,2725.8,2725.7,0.72888]
[1724677232533,4.03557,2725.8,2725.7,0.72888]
[1724677232936,0.36678,2725.7,2725.6,0.37123529]
[1724677233937,0.3758,2725.9,2725.7,0.36677]
[1724677233938,0.36677,2725.8,2725.7,0.36677]
[1724677234727,0.36678,2725.7,2725.6,0.37123529]
[1724677235929,0.36678,2725.8,2725.7,0.36678]
[1724677236132,0.36678,2725.7,2725.6,0.37124529]
[1724677236434,0.36678,2725.7,2725.6,0.00445529]
[1724677236837,1.2927,2725.9,2725.6,0.00445529]
[1724677236838,0.3758,2725.9,2725.6,0.00445529]
[1724677237043,0.36677,2725.8,2725.7,0.36678]
[1724677237224,0.3611,2726.0,2725.6,0.37124529]
[1724677237225,0.36678,2725.7,2725.6,0.37124529]
[1724677238433,0.36678,2725.7,2725.6,0.00445529]
[1724677238838,0.73308,2725.7,2725.6,0.00445529]
[1724677240035,1.65004,2725.7,2725.6,0.00445529]
[1724677240737,0.36678,2725.7,2725.6,0.00445529]
[1724677241142,0.36678,2725.7,2725.6,0.37124529]
[1724677241530,1.2683,2725.9,2725.6,0.37124529]
[1724677241531,0.36678,2725.8,2725.7,0.36678]
[1724677241731,0.3611,2726.0,2725.9,0.36675]
[1724677241942,0.00342055,2726.2,2726.1,0.36673]
[1724677242131,0.37013055,2726.2,2726.1,0.36673]
[1724677242534,0.00342055,2726.2,2726.1,0.36673]
[1724677242735,0.37013055,2726.2,2726.1,0.36673]
[1724677242962,0.36673,2726.1,2725.9,0.7323]
[1724677243136,0.36674,2726.0,2725.9,0.74805]
[1724677244642,0.36674,2726.0,2725.9,0.3813]
[1724677245233,0.36674,2726.0,2725.9,0.74805]
[1724677246035,0.36673,2726.1,2726.0,0.36673]
[1724677246941,0.36674,2726.0,2725.9,0.74804]
[1724677248948,0.36673,2726.1,2726.0,0.36673]
[1724677249139,0.36673,2726.1,2726.0,1.32492175]
[1724677250242,0.36673,2726.1,2726.0,0.95819175]
[1724677250548,0.36673,2726.1,2726.0,0.36674]
[1724677250839,0.36674,2726.0,2725.9,1.70623175]
[1724677251041,0.36674,2726.0,2725.9,0.74804]
[1724677251244,0.73944,2726.0,2725.9,0.74804]
[1724677252943,0.36673,2726.1,2726.0,0.36674]
[1724677253245,0.36675,2725.9,2725.8,0.95819175]
[1724677253545,0.36678,2725.7,2725.6,0.96264704]
[1724677253748,0.36678,2725.7,2725.6,1.32943704]
[1724677258243,0.36676,2725.9,2725.8,0.36675]
[1724677260644,1.28365,2725.9,2725.8,0.36675]
[1724677260842,0.36676,2725.9,2725.8,0.36675]
[1724677261954,1.28365,2725.9,2725.8,0.36675]
[1724677263842,0.36677,2725.8,2725.7,1.10237]
[1724677265253,0.36677,2725.8,2725.7,2.06056175]
[1724677267058,1.28369,2725.8,2725.7,0.72367]
[1724677267255,1.28369,2725.8,2725.7,1.68186175]
[1724677268745,1.28369,2725.8,2725.7,1.32496175]
[1724677268948,2.57131,2725.8,2725.7,0.95819175]
[1724677269159,2.2007,2725.7,2725.6,0.96264704]
[1724677269346,2.5569,2725.7,2725.6,0.96264704]
[1724677270356,1.63994,2725.7,2725.6,0.96264704]
[1724677270854,2.5569,2725.7,2725.6,0.96264704]
[1724677272548,2.20085,2725.5,2725.4,1.43728763]
[1724677272745,3.6688,2725.6,2725.2,0.96161673]
[1724677272952,2.20109,2725.2,2725.1,0.96161673]
[1724677273164,2.20109,2725.2,2724.9,0.96161673]
[1724677273165,1.28406,2725.0,2724.9,0.96161673]
[1724677273455,1.28406,2725.0,2724.9,0.36689]
[1724677273656,1.28406,2725.0,2724.9,0.37085448]
[1724677273859,1.28406,2725.0,2724.9,0.00396448]
[1724677273860,5.87085,2725.0,2724.9,0.00396448]
[1724677274056,9.07865,2725.0,2724.9,0.00396448]
[1724677274357,2.20142,2724.8,2724.7,0.0055061]
[1724677274553,2.20142,2724.8,2724.3,0.96161673]
[1724677274554,3.17,2724.8,2724.3,0.96161673]
[1724677274749,3.17,2724.8,2724.0,2.64808351]
[1724677274750,0.91743,2724.3,2724.0,0.96161673]
[1724677274957,0.36702,2723.9,2723.8,0.96161673]
[1724677275248,0.36707,2723.6,2723.4,1.32869673]
[1724677275452,0.36707,2723.6,2723.4,0.00331371]
[1724677275453,0.36708,2723.5,2723.4,0.00331371]
[1724677275857,0.00446705,2723.6,2723.5,0.36708]
[1724677276057,0.3761,2724.2,2724.0,0.367]
[1724677276250,0.74309,2724.2,2723.5,3.17]
[1724677276446,0.3761,2724.2,2723.5,3.17]
[1724677276650,0.3761,2724.2,2724.0,0.36699]
[1724677276859,3.5941,2724.4,2724.3,0.36697]
[1724677276860,3.2078,2724.4,2724.3,0.36697]
[1724677277060,3.2078,2724.4,2724.1,0.72328]
[1724677277061,0.37093753,2724.4,2724.1,0.72328]
[1724677277377,0.37093753,2724.4,2724.1,0.72329]
[1724677277759,0.37093753,2724.4,2724.1,0.3563]
[1724677278060,0.00397753,2724.4,2724.1,0.3563]
[1724677278260,0.00397753,2724.4,2724.3,0.36697]
[1724677278850,0.37093753,2724.4,2724.1,0.3563]
[1724677279157,0.00397753,2724.4,2724.3,0.36697]
[1724677279564,0.37092753,2724.4,2724.2,0.36697]
[1724677279864,0.37093753,2724.4,2724.1,0.72329]
[1724677280159,0.00397753,2724.4,2724.2,0.36698]
[1724677280360,0.00397753,2724.4,2724.3,0.36697]
[1724677280758,0.00397753,2724.4,2724.3,4.03737]
[1724677281855,0.00397753,2724.4,2724.3,0.36697]
[1724677282552,0.00397753,2724.4,2724.3,4.03737]
[1724677284058,0.0055061,2724.6,2724.5,0.36694]
[1724677284255,0.0055061,2724.6,2724.5,0.74424]
[1724677284451,0.36688,2725.0,2724.8,0.3669]
[1724677284654,0.36688,2725.0,2724.9,0.3593]
[1724677284850,0.37042598,2725.0,2724.9,0.3593]
[1724677285649,0.37041598,2725.0,2724.9,0.3593]
[1724677286064,0.37041598,2725.0,2724.7,0.0055061]
[1724677286065,0.3669,2724.8,2724.7,0.0055061]
[1724677286462,8.16236,2724.8,2724.7,0.0055061]
[1724677286771,14.07962,2724.8,2724.7,0.0055061]
[1724677286953,14.07962,2724.8,2723.6,0.96161673]
[1724677286954,0.91733,2724.6,2724.0,0.7219]
[1724677287160,0.36699,2724.1,2724.0,0.3549]
[1724677287361,0.36701,2724.0,2723.9,0.36701]
[1724677288166,0.367,2724.1,2723.7,0.0055061]
[1724677288355,0.367,2724.1,2723.9,0.36701]
[1724677288665,0.367,2724.1,2723.7,0.3725461]
[1724677288666,0.91749,2724.1,2723.7,0.3725461]
[1724677288862,0.36703,2723.9,2723.7,0.3725461]
[1724677289165,0.36704,2723.8,2723.7,0.0055061]
[1724677290162,4.95584,2723.8,2723.7,0.0055061]
[1724677292063,0.36712,2723.2,2722.7,3.2078]
[1724677292269,0.36712,2723.2,2722.9,0.36716]
[1724677292569,0.91774,2723.4,2722.8,0.3773]
[1724677292772,0.36716,2722.9,2722.6,1.12249]
[1724677292973,0.36717,2722.8,2722.6,0.3669]
[1724677293268,0.36718,2722.7,2722.6,0.37073793]
[1724677293486,0.00472234,2722.9,2722.6,0.37073793]
[1724677293677,0.36718,2722.8,2722.6,0.37073793]
[1724677294169,0.00472234,2722.9,2722.6,0.00383793]
[1724677294170,0.36718,2722.7,2722.6,0.00383793]
[1724677295985,0.00472234,2722.9,2722.7,0.36718]
[1724677296165,0.37188234,2722.9,2722.6,0.37102793]
[1724677297060,0.00472234,2722.9,2722.6,0.00383793]
[1724677297265,0.36718,2722.8,2722.6,0.00383793]
[1724677298072,0.36718,2722.7,2722.6,0.00383793]
[1724677298662,0.36718,2722.8,2722.6,0.00383793]
[1724677298865,0.36717,2722.8,2722.6,0.00383793]
[1724677299268,0.36718,2722.8,2722.6,0.00383793]
[1724677299475,0.00472234,2722.9,2722.6,0.00383793]
[1724677299672,0.00472234,2722.9,2722.8,0.36717]
[1724677300068,3.67752234,2722.9,2722.8,0.36717]
[1724677300477,0.00472234,2722.9,2722.8,0.36717]
[1724677300680,3.49307,2723.6,2723.3,0.36709]
[1724677300865,0.36708,2723.5,2723.2,0.3671]
[1724677301066,0.36708,2723.5,2722.9,0.3837]
[1724677301067,9.25672631,2723.5,2722.9,0.3837]
[1724677301267,9.25672631,2723.6,2723.1,4.12563]
[1724677301571,9.53629296,2723.8,2723.5,0.36708]
[1724677301772,0.36705,2723.7,2723.5,0.36708]
[1724677302004,0.00335546,2723.8,2723.1,3.2078]
[1724677302272,0.00335546,2723.8,2723.2,0.9178]
[1724677302476,0.36705,2723.7,2723.5,0.36707]
[1724677302675,0.00335546,2723.8,2723.3,0.3673]
[1724677302876,0.00335546,2723.8,2723.3,0.36709]
[1724677303081,0.36708,2723.5,2723.3,0.36709]
[1724677303382,0.36709,2723.4,2723.2,0.3671]
[1724677303580,0.36708,2723.5,2723.3,0.3671]
[1724677303879,0.36707,2723.6,2723.3,0.3671]
[1724677304385,0.92096546,2723.8,2723.1,3.2078]
[1724677304386,0.00335546,2723.8,2723.5,0.36707]
[1724677304770,0.00335546,2723.8,2723.7,0.36705]
[1724677306394,0.00335546,2723.8,2723.7,4.95588]
[1724677306683,0.00335546,2723.8,2723.7,4.03825]
[1724677310779,0.00335546,2723.8,2723.7,0.36705]
[1724677311277,0.00335546,2723.8,2723.6,1.09055]
[1724677311278,0.37039546,2723.8,2723.6,1.09055]
[1724677311978,0.37039546,2723.8,2723.7,0.36705]
[1724677311979,0.00335546,2723.8,2723.7,0.36705]
[1724677313075,0.00335546,2723.8,2723.6,0.7235]
[1724677313076,0.36705,2723.7,2723.6,0.3506]
[1724677313378,0.36706,2723.7,2723.5,3.57487]
[1724677313684,0.00335546,2723.8,2723.6,0.36706]
[1724677313685,0.37040546,2723.8,2723.6,0.36706]
[1724677313894,0.37040546,2723.8,2723.5,3.2078]
[1724677313895,0.36705,2723.7,2723.5,3.57487]
[1724677314090,0.36706,2723.6,2723.5,3.57487]
[1724677314284,0.37039546,2723.8,2723.6,0.36706]
[1724677314586,0.36705,2723.7,2723.5,3.57487]
[1724677315172,0.00335546,2723.8,2723.1,1.1047]
[1724677315173,3.21115546,2723.8,2723.1,1.1047]
[1724677315388,0.36706,2723.6,2723.4,0.36709]
[1724677315792,0.9177,2723.5,2723.1,0.7374]
[1724677315981,0.36711,2723.3,2723.1,1.10452]
[1724677316386,0.36712,2723.2,2723.1,1.10452]
[1724677316688,0.3696,2723.6,2722.7,3.2078]
[1724677316689,4.08773,2723.4,2722.7,3.2078]
[1724677316879,4.08773,2723.4,2722.7,3.57498]
[1724677316880,0.36716,2722.9,2722.7,3.57498]
[1724677317281,0.3522,2723.1,2722.7,3.2078]
[1724677317496,0.71933,2723.1,2722.9,0.36715]
[1724677317789,0.36714,2723.0,2722.9,0.36715]
[1724677318994,0.71934,2723.1,2723.0,0.36714]
[1724677319489,1.28729,2723.6,2722.9,0.91789]
[1724677319790,1.28729,2723.6,2723.2,0.36711]
[1724677319791,0.36711,2723.3,2723.2,0.36711]
[1724677320091,3.5572,2723.7,2723.4,0.36709]
[1724677320092,4.47485,2723.7,2723.4,0.36709]
[1724677320291,4.47485,2723.7,2723.0,1.30016]
[1724677320497,0.3671,2723.4,2723.2,0.36711]
[1724677320695,9.30361551,2723.6,2723.0,0.3823]
[1724677320894,9.30361551,2723.6,2722.9,0.36715]
[1724677320895,0.91775,2723.4,2722.9,0.36715]
[1724677321104,0.3554,2723.3,2722.9,0.36715]
[1724677321405,0.91785,2723.1,2722.7,3.57498]
[1724677321593,0.36717,2722.8,2722.7,3.2078]
[1724677322400,0.36718,2722.7,2722.6,0.00383793]
[1724677322696,5.71865,2722.7,2722.6,0.00383793]
[1724677323195,10.71865,2722.7,2722.6,0.00383793]
[1724677323697,1.2852,2722.6,2722.5,0.0055061]
[1724677323895,4.958,2722.6,2722.5,0.0055061]
[1724677324393,1.28539,2722.2,2722.1,3.2078]
[1724677324600,1.28539,2722.2,2721.8,0.3673]
[1724677324601,0.36729,2721.9,2721.8,0.3673]
[1724677324792,0.36729,2721.9,2721.8,0.0035255]
[1724677324995,4.95913,2721.9,2721.8,0.0035255]
[1724677325189,4.95913,2721.9,2721.0,1.33111673]
[1724677325190,11.8814,2721.9,2720.6,0.96161673]
[1724677325492,0.36739,2721.2,2721.0,0.0055061]
[1724677325690,0.36739,2721.2,2721.0,0.3729161]
[1724677325898,0.0055061,2721.5,2721.0,0.0055061]
[1724677326104,0.3728561,2721.5,2721.0,0.0055061]
[1724677326398,0.36737,2721.4,2721.2,0.36738]
[1724677326611,0.36737,2721.3,2721.2,0.36738]
[1724677326896,0.36737,2721.3,2721.1,0.36739]
[1724677327292,0.36737,2721.3,2721.0,0.00854681]
[1724677327597,0.36737,2721.3,2721.1,0.36739]
[1724677327802,0.36737,2721.3,2721.1,0.3674]
[1724677327995,0.00962685,2721.5,2721.1,0.3674]
[1724677328192,0.36737,2721.4,2721.0,0.00854681]
[1724677328890,0.37697685,2721.5,2721.3,0.36737]
[1724677329102,0.00962685,2721.5,2721.4,0.36736]
[1724677329493,0.00962685,2721.5,2721.4,4.04176]
[1724677329701,0.00962685,2721.5,2721.4,4.96017]
[1724677330101,0.00962685,2721.5,2721.4,9.96017]
[1724677330604,3.5695,2722.2,2721.9,0.36729]
[1724677330605,0.36727,2722.1,2721.9,0.36729]
[1724677330805,0.36727,2722.1,2721.9,0.36728]
[1724677331005,3.5695,2722.2,2721.6,0.36733]
[1724677331207,3.5695,2722.2,2721.2,0.3677]
[1724677331208,0.3673,2721.9,2721.2,0.3677]
[1724677331401,0.37190337,2721.9,2721.7,0.36731]
[1724677331610,0.0055061,2721.8,2721.7,0.36731]
[1724677332407,0.0055061,2721.8,2721.7,4.04171]
[1724677333901,0.0055061,2721.8,2721.6,3.2078]
[1724677334100,0.3728261,2721.8,2721.6,3.57513]
[1724677334300,0.3728261,2721.8,2721.6,3.2078]
[1724677334301,0.36732,2721.7,2721.6,3.2078]
[1724677335198,0.0055061,2721.8,2721.7,0.36732]
[1724677335813,0.0055061,2721.8,2721.7,4.04172]
[1724677336303,0.0055061,2721.8,2721.7,4.96003]
[1724677336502,0.0055061,2721.8,2721.7,10.87834]
[1724677337315,4.55423,2722.4,2721.7,10.87834]
[1724677337316,3.2078,2722.7,2722.2,0.91813]
[1724677337511,3.575,2722.7,2722.5,0.36721]
[1724677337710,4.94,2723.0,2722.3,0.9181]
[1724677337914,0.36718,2722.8,2722.2,0.91813]
[1724677338108,0.3726861,2722.8,2722.6,0.36719]
[1724677338304,0.00834219,2722.8,2722.7,0.36719]
[1724677338506,0.00834219,2722.8,2722.7,4.95796]
[1724677338710,0.36708,2723.5,2722.8,0.91794]
[1724677338909,3.2078,2723.6,2723.2,0.3671]
[1724677339116,0.3671,2723.4,2723.2,0.36712]
[1724677339313,0.3671,2723.4,2722.7,0.357]
[1724677339314,0.3671,2723.3,2723.0,0.36714]
[1724677339617,4.12549,2723.6,2723.1,0.36712]
[1724677339618,3.2078,2723.6,2723.1,0.36712]
[1724677339916,0.00396534,2723.3,2723.2,0.36712]
[1724677340116,0.37107534,2723.3,2723.1,0.36712]